fUST/lending_fUST_20250726
["ID","MTS","AMOUNT","RATE_DAILY","PERIOD"]
[375017598,1753503033255,-460.0,0.00019178,2]
[375017600,1753503033265,-460.0,0.00019178,2]
[375017602,1753503033277,-460.0,0.00019178,2]
[375017604,1753503033287,-460.0,0.00019178,2]
[375017606,1753503033297,-460.0,0.00019178,2]
[375017608,1753503033307,-460.0,0.00019178,2]
[375017610,1753503033317,-460.0,0.00019178,2]
[375017612,1753503033327,-460.0,0.00019178,2]
[375017614,1753503033336,-460.0,0.00019178,2]
[375017616,1753503033345,-712.47,0.00019178,2]
[375017618,1753503033355,-460.0,0.00019178,2]
[375017620,1753503033365,-460.0,0.00019178,2]
[375017622,1753503033376,-460.0,0.00019178,2]
[375017624,1753503033385,-460.0,0.00019178,2]
[375017626,1753503033395,-460.0,0.00019178,2]
[375017628,1753503033406,-461.08712612,0.00019178,2]
[375017630,1753503033415,-460.0,0.00019178,2]
[375017632,1753503033425,-462.3564401,0.00019178,2]
[375017634,1753503033434,-460.0,0.00019178,2]
[375017636,1753503033443,-176.61720083,0.00019178,2]
[375017638,1753503033452,-460.0,0.00019178,2]
[375017640,1753503033463,-152.67893507,0.00019178,2]
[375017642,1753503033472,-447.79876407,0.00019178,2]
[375017644,1753503033482,-152.1008972,0.00019178,2]
[375017646,1753503033492,-151.0,0.00019178,2]
[375017649,1753503033506,-151.32034587,0.00019178,2]
[375017650,1753503033523,-151.0,0.00019178,2]
[375017652,1753503033533,-460.0,0.00019178,2]
[375017654,1753503033543,-460.0,0.00019178,2]
[375017656,1753503033552,-460.0,0.00019178,2]
[375017658,1753503033561,-159.03261959,0.00019178,2]
[375017660,1753503033571,-460.0,0.00019178,2]
[375017662,1753503033580,-460.0,0.00019178,2]
[375017664,1753503033590,-461.65546199,0.00019178,2]
[375017666,1753503033599,-460.0,0.00019178,2]
[375017668,1753503033609,-460.0,0.00019178,2]
[375017669,1753503033619,-460.0,0.00019178,2]
[375017670,1753503033628,-460.0,0.00019178,2]
[375017671,1753503033638,-460.0,0.00019178,2]
[375017672,1753503033647,-460.0,0.00019178,2]
[375017673,1753503033656,-466.11001482,0.00019178,2]
[375017674,1753503033665,-460.0,0.00019178,2]
[375017675,1753503033674,-460.0,0.00019178,2]
[375017676,1753503033684,-592.88,0.00019178,2]
[375017677,1753503033692,-544.83,0.00019178,2]
[375017678,1753503033701,-460.0,0.00019178,2]
[375017679,1753503033709,-460.0,0.00019178,2]
[375017680,1753503033718,-462.11832515,0.00019178,2]
[375017681,1753503033727,-460.89287944,0.00019178,2]
[375017682,1753503033736,-461.398335,0.00019178,2]
[375017683,1753503033750,-460.0,0.00019178,2]
[375017684,1753503033760,-460.0,0.00019178,2]
[375017685,1753503033769,-460.0,0.00019178,2]
[375017686,1753503033780,-163.52629931,0.00019178,2]
[375017687,1753503033790,-477.13661889,0.00019178,2]
[375017688,1753503033799,-460.0,0.00019178,2]
[375017689,1753503033809,-553.43611703,0.00019178,2]
[375017690,1753503033819,-460.0,0.00019178,2]
[375017691,1753503033828,-460.0,0.00019178,2]
[375017692,1753503033838,-463.40558608,0.00019178,2]
[375017694,1753503033848,-600.12813032,0.00019178,2]
[375017695,1753503033857,-461.01723043,0.00019178,2]
[375017696,1753503033866,-460.0,0.00019178,2]
[375017697,1753503033876,-460.0,0.00019178,2]
[375017698,1753503033886,-460.0,0.00019178,2]
[375017700,1753503033896,-460.0,0.00019178,2]
[375017702,1753503033906,-462.94460664,0.00019178,2]
[375017704,1753503033915,-484.49959062,0.00019178,2]
[375017706,1753503033925,-461.49204769,0.00019178,2]
[375017708,1753503033934,-460.0,0.00019178,2]
[375017710,1753503033943,-460.0,0.00019178,2]
[375017712,1753503033953,-459.94128111,0.00019178,2]
[375017714,1753503033962,-460.0,0.00019178,2]
[375017716,1753503033971,-460.0,0.00019178,2]
[375017718,1753503033982,-460.0,0.00019178,2]
[375017720,1753503033991,-460.0,0.00019178,2]
[375017722,1753503034001,-460.0,0.00019178,2]
[375017724,1753503034011,-460.0,0.00019178,2]
[375017726,1753503034020,-460.0,0.00019178,2]
[375017728,1753503034030,-460.0,0.00019178,2]
[375017730,1753503034040,-461.1752991,0.00019178,2]
[375017732,1753503034049,-463.50039049,0.00019178,2]
[375017734,1753503034059,-460.0,0.00019178,2]
[375017736,1753503034068,-460.0,0.00019178,2]
[375017738,1753503034078,-151.0,0.00019178,2]
[375017740,1753503034087,-500.0,0.00019178,2]
[375017742,1753503034096,-460.0,0.00019178,2]
[375017744,1753503034106,-153.04704999,0.00019178,2]
[375017746,1753503034115,-460.0,0.00019178,2]
[375017748,1753503034124,-460.0,0.00019178,2]
[375017750,1753503034134,-153.74907795,0.00019178,2]
[375017752,1753503034143,-151.0,0.00019178,2]
[375017754,1753503034152,-151.50288936,0.00019178,2]
[375017756,1753503034162,-460.0,0.00019178,2]
[375017758,1753503034171,-463.41241818,0.00019178,2]
[375017760,1753503034180,-255.46681126,0.00019178,2]
[375017762,1753503034190,-460.0,0.00019178,2]
[375017764,1753503034199,-472.7005804,0.00019178,2]
[375017765,1753503034210,-460.0,0.00019178,2]
[375017767,1753503034219,-151.0,0.00019178,2]
[375017770,1753503034229,-460.0,0.00019178,2]
[375017772,1753503034239,-151.0,0.00019178,2]
[375017774,1753503034249,-151.0,0.00019178,2]
[375017776,1753503034258,-460.0,0.00019178,2]
[375017778,1753503034268,-151.27440527,0.00019178,2]
[375017780,1753503034277,-151.63136003,0.00019178,2]
[375017781,1753503034287,-151.51900748,0.00019178,2]
[375017784,1753503034297,-463.04020801,0.00019178,2]
[375017786,1753503034307,-460.0,0.00019178,2]
[375017788,1753503034317,-461.55126977,0.00019178,2]
[375017790,1753503034326,-460.21140203,0.00019178,2]
[375017791,1753503034336,-291.26490317,0.00019178,2]
[375017793,1753503034347,-464.48516617,0.00019178,2]
[375017796,1753503034357,-460.0,0.00019178,2]
[375017798,1753503034367,-460.0,0.00019178,2]
[375017799,1753503034377,-460.0,0.00019178,2]
[375017801,1753503034387,-461.30669334,0.00019178,2]
[375017803,1753503034396,-460.0,0.00019178,2]
[375017805,1753503034405,-460.0,0.00019178,2]
[375017808,1753503034415,-510.82985025,0.00019178,2]
[375017810,1753503034425,-460.0,0.00019178,2]
[375017812,1753503034434,-460.0,0.00019178,2]
[375017813,1753503034444,-460.0,0.00019178,2]
[375017815,1753503034453,-460.0,0.00019178,2]
[375017817,1753503034462,-460.0,0.00019178,2]
[375017819,1753503034471,-460.0,0.00019178,2]
[375017821,1753503034480,-461.12390184,0.00019178,2]
[375017823,1753503034489,-460.0,0.00019178,2]
[375017825,1753503034499,-460.0,0.00019178,2]
[375017827,1753503034508,-460.0,0.00019178,2]
[375017829,1753503034518,-460.89190463,0.00019178,2]
[375017831,1753503034527,-460.0,0.00019178,2]
[375017833,1753503034537,-460.0,0.00019178,2]
[375017835,1753503034546,-460.0,0.00019178,2]
[375017837,1753503034557,-460.0,0.00019178,2]
[375017839,1753503034566,-462.54811364,0.00019178,2]
[375017841,1753503034575,-460.0,0.00019178,2]
[375017843,1753503034585,-460.0,0.00019178,2]
[375017845,1753503034594,-462.2797578,0.00019178,2]
[375017847,1753503034604,-460.0,0.00019178,2]
[375017849,1753503034613,-102.24485319,0.00019178,2]
[375017873,1753503034841,-281.95768232,0.00019178,2]
[375017943,1753503037958,-75.79746449,0.00019178,2]
[375017944,1753503037967,-181.52150961,0.00019178,2]
[375017945,1753503037979,-68.41925747,0.00019178,2]
[375017946,1753503037988,-460.0,0.00019178,2]
[375017947,1753503037997,-473.98212416,0.00019178,2]
[375017948,1753503038007,-460.0,0.00019178,2]
[375017949,1753503038017,-460.0,0.00019178,2]
[375017950,1753503038026,-460.0,0.00019178,2]
[375017951,1753503038036,-460.0,0.00019178,2]
[375017952,1753503038045,-460.0,0.00019178,2]
[375017953,1753503038055,-460.0,0.00019178,2]
[375017954,1753503038065,-460.0,0.00019178,2]
[375017955,1753503038075,-463.80019973,0.00019178,2]
[375017956,1753503038084,-460.0,0.00019178,2]
[375017957,1753503038093,-488.7,0.00019178,2]
[375017958,1753503038102,-460.0,0.00019178,2]
[375017959,1753503038111,-466.97929541,0.00019178,2]
[375017960,1753503038120,-460.0,0.00019178,2]
[375017961,1753503038130,-46.70549145,0.00019178,2]
[375017962,1753503038142,-413.29450855,0.00019178,2]
[375017963,1753503038152,-460.0,0.00019178,2]
[375017964,1753503038162,-464.3062489,0.00019178,2]
[375017965,1753503038171,-460.0,0.00019178,2]
[375017967,1753503038180,-463.66347621,0.00019178,2]
[375017969,1753503038189,-460.0,0.00019178,2]
[375017970,1753503038199,-460.69976876,0.00019178,2]
[375017971,1753503038208,-468.63511182,0.00019178,2]
[375017972,1753503038217,-460.0,0.00019178,2]
[375017973,1753503038227,-460.0,0.00019178,2]
[375017974,1753503038236,-460.0,0.00019178,2]
[375017975,1753503038247,-460.0,0.00019178,2]
[375017976,1753503038256,-460.0,0.00019178,2]
[375017977,1753503038265,-468.61838035,0.00019178,2]
[375017978,1753503038275,-462.4678689,0.00019178,2]
[375017979,1753503038284,-460.0,0.00019178,2]
[375017980,1753503038293,-462.19880309,0.00019178,2]
[375017981,1753503038303,-460.0,0.00019178,2]
[375017982,1753503038313,-460.0,0.00019178,2]
[375017983,1753503038323,-460.0,0.00019178,2]
[375017984,1753503038332,-460.0,0.00019178,2]
[375017985,1753503038342,-461.96959821,0.00019178,2]
[375017986,1753503038351,-461.11822262,0.00019178,2]
[375017987,1753503038360,-709.79,0.00019178,2]
[375017988,1753503038369,-480.26113906,0.00019178,2]
[375017989,1753503038378,-160.8486987,0.00019178,2]
[375017990,1753503038388,-460.0,0.00019178,2]
[375017991,1753503038398,-460.0,0.00019178,2]
[375017992,1753503038407,-460.0,0.00019178,2]
[375017993,1753503038416,-460.0,0.00019178,2]
[375017994,1753503038425,-474.31190478,0.00019178,2]
[375017995,1753503038435,-460.0,0.00019178,2]
[375017996,1753503038445,-460.0,0.00019178,2]
[375017997,1753503038453,-500.0,0.00019178,2]
[375017998,1753503038463,-460.0,0.00019178,2]
[375017999,1753503038472,-500.0,0.00019178,2]
[375018000,1753503038481,-500.0,0.00019178,2]
[375018001,1753503038491,-500.0,0.00019178,2]
[375018002,1753503038500,-460.0,0.00019178,2]
[375018003,1753503038509,-460.0,0.00019178,2]
[375018004,1753503038518,-460.0,0.00019178,2]
[375018005,1753503038527,-460.0,0.00019178,2]
[375018006,1753503038536,-460.0,0.00019178,2]
[375018007,1753503038544,-460.0,0.00019178,2]
[375018008,1753503038553,-460.0,0.00019178,2]
[375018009,1753503038562,-425.30214515,0.00019178,2]
[375018010,1753503038571,-460.0,0.00019178,2]
[375018011,1753503038580,-163.9361534,0.00019178,2]
[375018012,1753503038594,-296.0638466,0.00019178,2]
[375018013,1753503038604,-460.54747465,0.00019178,2]
[375018014,1753503038613,-460.0,0.00019178,2]
[375018015,1753503038623,-460.0,0.00019178,2]
[375018016,1753503038632,-14.13607371,0.00019178,2]
[375018017,1753503038644,-446.90396645,0.00019178,2]
[375018018,1753503038653,-460.0,0.00019178,2]
[375018019,1753503038662,-460.0,0.00019178,2]
[375018020,1753503038672,-460.0,0.00019178,2]
[375018021,1753503038681,-460.0,0.00019178,2]
[375018022,1753503038690,-462.79349553,0.00019178,2]
[375018023,1753503038700,-460.0,0.00019178,2]
[375018024,1753503038709,-460.0,0.00019178,2]
[375018025,1753503038718,-460.0,0.00019178,2]
[375018026,1753503038728,-460.0,0.00019178,2]
[375018027,1753503038737,-432.25079346,0.00019178,2]
[375018028,1753503038751,-460.0,0.00019178,2]
[375018029,1753503038761,-460.0,0.00019178,2]
[375018030,1753503038771,-460.0,0.00019178,2]
[375018031,1753503038781,-460.0,0.00019178,2]
[375018032,1753503038790,-460.0,0.00019178,2]
[375018033,1753503038800,-460.0,0.00019178,2]
[375018034,1753503038809,-460.0,0.00019178,2]
[375018035,1753503038820,-1176.96,0.00019178,2]
[375018036,1753503038830,-460.0,0.00019178,2]
[375018037,1753503038839,-460.0,0.00019178,2]
[375018038,1753503038848,-460.0,0.00019178,2]
[375018039,1753503038858,-563.08961056,0.00019178,2]
[375018040,1753503038867,-803.76,0.00019178,2]
[375018041,1753503038878,-472.96,0.00019178,2]
[375018042,1753503038887,-460.0,0.00019178,2]
[375018043,1753503038896,-460.0,0.00019178,2]
[375018044,1753503038906,-460.0,0.00019178,2]
[375018045,1753503038915,-1356.377134,0.00019178,2]
[375018047,1753503038932,-1968.432866,0.00019178,2]
[375018048,1753503038940,-460.0,0.00019178,2]
[375018050,1753503038950,-460.0,0.00019178,2]
[375018051,1753503038959,-460.0,0.00019178,2]
[375018052,1753503038970,-460.0,0.00019178,2]
[375018053,1753503038979,-460.0,0.00019178,2]
[375018054,1753503038988,-460.0,0.00019178,2]
[375018055,1753503038998,-460.0,0.00019178,2]
[375018056,1753503039007,-292.47734825,0.00019178,2]
[375018061,1753503040015,-167.52265175,0.00019178,2]
[375018062,1753503040025,-461.00729123,0.00019178,2]
[375018063,1753503040034,-304.71480927,0.00019178,2]
[375018064,1753503040045,-155.28519073,0.00019178,2]
[375018065,1753503040055,-460.0,0.00019178,2]
[375018066,1753503040065,-460.0,0.00019178,2]
[375018067,1753503040075,-460.0,0.00019178,2]
[375018068,1753503040084,-460.0,0.00019178,2]
[375018069,1753503040094,-460.0,0.00019178,2]
[375018070,1753503040104,-460.0,0.00019178,2]
[375018071,1753503040113,-183.08693074,0.00019178,2]
[375018072,1753503040123,-460.0,0.00019178,2]
[375018073,1753503040132,-490.0,0.00019178,2]
[375018074,1753503040141,-460.0,0.00019178,2]
[375018075,1753503040151,-460.0,0.00019178,2]
[375018076,1753503040160,-3182.0,0.00019178,2]
[375018077,1753503040169,-463.44324778,0.00019178,2]
[375018078,1753503040179,-460.0,0.00019178,2]
[375018079,1753503040188,-460.0,0.00019178,2]
[375018080,1753503040197,-467.25439417,0.00019178,2]
[375018081,1753503040206,-460.0,0.00019178,2]
[375018082,1753503040215,-460.0,0.00019178,2]
[375018083,1753503040225,-460.0,0.00019178,2]
[375018084,1753503040234,-469.97423377,0.00019178,2]
[375018085,1753503040243,-460.0,0.00019178,2]
[375018086,1753503040253,-575.46883416,0.00019178,2]
[375018087,1753503040263,-460.0,0.00019178,2]
[375018088,1753503040282,-460.0,0.00019178,2]
[375018089,1753503040298,-460.0,0.00019178,2]
[375018090,1753503040314,-460.0,0.00019178,2]
[375018091,1753503040324,-460.0,0.00019178,2]
[375018092,1753503040334,-460.0,0.00019178,2]
[375018093,1753503040343,-460.0,0.00019178,2]
[375018094,1753503040352,-460.0,0.00019178,2]
[375018095,1753503040362,-198.61293876,0.00019178,2]
[375018096,1753503040371,-460.0,0.00019178,2]
[375018097,1753503040381,-151.0,0.00019178,2]
[375018098,1753503040391,-460.0,0.00019178,2]
[375018099,1753503040400,-460.0,0.00019178,2]
[375018100,1753503040409,-500.0,0.00019178,2]
[375018101,1753503040419,-460.0,0.00019178,2]
[375018102,1753503040428,-460.0,0.00019178,2]
[375018103,1753503040438,-460.0,0.00019178,2]
[375018104,1753503040447,-460.0,0.00019178,2]
[375018105,1753503040456,-460.0,0.00019178,2]
[375018106,1753503040466,-460.0,0.00019178,2]
[375018107,1753503040475,-460.0,0.00019178,2]
[375018108,1753503040484,-460.0,0.00019178,2]
[375018109,1753503040493,-460.0,0.00019178,2]
[375018110,1753503040502,-460.0,0.00019178,2]
[375018111,1753503040512,-460.0,0.00019178,2]
[375018112,1753503040521,-688.59,0.00019178,2]
[375018113,1753503040530,-460.0,0.00019178,2]
[375018114,1753503040539,-460.0,0.00019178,2]
[375018115,1753503040549,-460.0,0.00019178,2]
[375018116,1753503040558,-460.0,0.00019178,2]
[375018117,1753503040568,-460.0,0.00019178,2]
[375018118,1753503040577,-460.0,0.00019178,2]
[375018119,1753503040586,-463.61158117,0.00019178,2]
[375018120,1753503040595,-460.0,0.00019178,2]
[375018121,1753503040604,-1842.06,0.00019178,2]
[375018122,1753503040613,-460.0,0.00019178,2]
[375018123,1753503040623,-460.0,0.00019178,2]
[375018124,1753503040632,-460.0,0.00019178,2]
[375018125,1753503040642,-2076.49,0.00019178,2]
[375018126,1753503040652,-461.14283642,0.00019178,2]
[375018127,1753503040661,-460.0,0.00019178,2]
[375018128,1753503040670,-460.0,0.00019178,2]
[375018129,1753503040679,-430.55442322,0.00019178,2]
[375018130,1753503040689,-460.0,0.00019178,2]
[375018131,1753503040698,-463.62831925,0.00019178,2]
[375018132,1753503040707,-465.75713213,0.00019178,2]
[375018133,1753503040717,-460.0,0.00019178,2]
[375018134,1753503040726,-460.0,0.00019178,2]
[375018135,1753503040735,-460.0,0.00019178,2]
[375018136,1753503040748,-571.41,0.00019178,2]
[375018137,1753503040757,-463.29545648,0.00019178,2]
[375018138,1753503040767,-460.0,0.00019178,2]
[375018139,1753503040775,-460.0,0.00019178,2]
[375018140,1753503040786,-464.23890129,0.00019178,2]
[375018141,1753503040795,-460.0,0.00019178,2]
[375018142,1753503040804,-460.0,0.00019178,2]
[375018143,1753503040814,-460.0,0.00019178,2]
[375018144,1753503040824,-460.0,0.00019178,2]
[375018145,1753503040834,-460.0,0.00019178,2]
[375018146,1753503040843,-460.0,0.00019178,2]
[375018147,1753503040852,-464.35107728,0.00019178,2]
[375018148,1753503040862,-460.0,0.00019178,2]
[375018149,1753503040871,-460.0,0.00019178,2]
[375018150,1753503040880,-460.0,0.00019178,2]
[375018151,1753503040890,-460.0,0.00019178,2]
[375018152,1753503040899,-460.0,0.00019178,2]
[375018153,1753503040908,-460.0,0.00019178,2]
[375018154,1753503040917,-460.0,0.00019178,2]
[375018155,1753503040927,-500.0,0.00019178,2]
[375018156,1753503040937,-500.0,0.00019178,2]
[375018157,1753503040946,-500.0,0.00019178,2]
[375018158,1753503040955,-500.0,0.00019178,2]
[375018159,1753503040964,-500.0,0.00019178,2]
[375018160,1753503040973,-500.0,0.00019178,2]
[375018161,1753503040983,-460.0,0.00019178,2]
[375018162,1753503040993,-500.0,0.00019178,2]
[375018163,1753503041003,-423.99743599,0.00019178,2]
[375018164,1753503041013,-460.0,0.00019178,2]
[375018165,1753503041022,-5179.5,0.00019178,2]
[375018166,1753503041031,-460.0,0.00019178,2]
[375018167,1753503041040,-460.0,0.00019178,2]
[375018168,1753503041050,-460.0,0.00019178,2]
[375018169,1753503041060,-460.0,0.00019178,2]
[375018170,1753503041070,-462.7489231,0.00019178,2]
[375018171,1753503041080,-1168.77,0.00019178,2]
[375018172,1753503041089,-465.49738114,0.00019178,2]
[375018173,1753503041100,-460.0,0.00019178,2]
[375018174,1753503041109,-1461.66,0.00019178,2]
[375018175,1753503041118,-460.0,0.00019178,2]
[375018176,1753503041127,-500.0,0.00019178,2]
[375018177,1753503041136,-460.0,0.00019178,2]
[375018178,1753503041146,-151.0,0.00019178,2]
[375018179,1753503041157,-536.99,0.00019178,2]
[375018180,1753503041167,-460.0,0.00019178,2]
[375018181,1753503041177,-456.64740352,0.00019178,2]
[375018182,1753503041186,-500.0,0.00019178,2]
[375018183,1753503041195,-460.0,0.00019178,2]
[375018184,1753503041204,-460.0,0.00019178,2]
[375018185,1753503041214,-460.0,0.00019178,2]
[375018186,1753503041223,-460.0,0.00019178,2]
[375018187,1753503041233,-460.0,0.00019178,2]
[375018188,1753503041242,-460.0,0.00019178,2]
[375018189,1753503041252,-460.0,0.00019178,2]
[375018190,1753503041262,-153.3397382,0.00019178,2]
[375018191,1753503041271,-460.0,0.00019178,2]
[375018192,1753503041283,-461.69174536,0.00019178,2]
[375018193,1753503041292,-769.27,0.00019178,2]
[375018194,1753503041302,-460.0,0.00019178,2]
[375018195,1753503041311,-1266.26,0.00019178,2]
[375018196,1753503041320,-466.43,0.00019178,2]
[375018197,1753503041330,-460.0,0.00019178,2]
[375018198,1753503041340,-460.0,0.00019178,2]
[375018199,1753503041349,-460.0,0.00019178,2]
[375018200,1753503041359,-460.0,0.00019178,2]
[375018201,1753503041368,-464.98903918,0.00019178,2]
[375018202,1753503041378,-502.90253703,0.00019178,2]
[375018203,1753503041387,-460.0,0.00019178,2]
[375018204,1753503041396,-460.0,0.00019178,2]
[375018205,1753503041406,-460.0,0.00019178,2]
[375018206,1753503041415,-460.0,0.00019178,2]
[375018207,1753503041425,-460.60844574,0.00019178,2]
[375018208,1753503041435,-460.0,0.00019178,2]
[375018209,1753503041445,-344.38210335,0.00019178,2]
[375018210,1753503041454,-460.0,0.00019178,2]
[375018211,1753503041463,-467.3000839,0.00019178,2]
[375018212,1753503041472,-575.29280045,0.00019178,2]
[375018213,1753503041482,-463.91113481,0.00019178,2]
[375018214,1753503041491,-460.0,0.00019178,2]
[375018215,1753503041500,-460.0,0.00019178,2]
[375018216,1753503041510,-419.56686568,0.00019178,2]
[375018217,1753503041519,-460.0,0.00019178,2]
[375018218,1753503041528,-460.0,0.00019178,2]
[375018219,1753503041538,-460.0,0.00019178,2]
[375018220,1753503041550,-460.0,0.00019178,2]
[375018221,1753503041559,-460.0,0.00019178,2]
[375018222,1753503041569,-460.0,0.00019178,2]
[375018223,1753503041579,-1118.37,0.00019178,2]
[375018224,1753503041588,-621.16,0.00019178,2]
[375018225,1753503041597,-476.17716509,0.00019178,2]
[375018226,1753503041606,-500.0,0.00019178,2]
[375018227,1753503041615,-171.923123,0.00019178,2]
[375018228,1753503041624,-666.0,0.00019178,2]
[375018229,1753503041634,-300.01,0.00019206,2]
[375018230,1753503041643,-705.81446475,0.00019215,2]
[375018231,1753503041654,-6582.14418217,0.00019229,2]
[375018232,1753503041665,-7153.23624145,0.000193,2]
[375018233,1753503041679,-416.65490336,0.000193,2]
[375018234,1753503041691,-434.05328037,0.000193,2]
[375018235,1753503041703,-798.17650005,0.000193,2]
[375018238,1753503043016,-460.0,0.00019178,2]
[375018239,1753503043026,-460.0,0.00019178,2]
[375018240,1753503043035,-455.8376376,0.00019178,2]
[375018241,1753503043045,-14212.08515907,0.000193,2]
[375018242,1753503043057,-12245.0784574,0.000193,2]
[375018243,1753503043098,-2712.5024788,0.000193,2]
[375018244,1753503043110,-12707.58548631,0.000193,2]
[375018245,1753503043121,-581.6255165,0.000193,2]
[375018246,1753503043202,-497.43679966,0.000193,2]
[375018255,1753503046010,-460.0,0.00019178,2]
[375018256,1753503046020,-600.13935512,0.000193,2]
[375018257,1753503046065,-7544.08650692,0.000193,2]
[375018258,1753503046119,-16861.630354,0.000193,2]
[375018341,1753503292725,274.411998,0.00013699,2]
[375018385,1753504122974,10022.64567198,0.0001,2]
[375018440,1753504232340,-364.39309849,0.00017413,2]
[375018449,1753504238090,-435.39341595,0.00017413,2]
[375018450,1753504238144,-1051.33495113,0.00017413,2]
[375018451,1753504238200,-979.0398617,0.00017413,2]
[375018452,1753504238212,-2169.83867273,0.00017413,2]
[375018453,1753504238221,-160.85822982,0.00017488,2]
[375018454,1753504238230,-300.0,0.00017588,2]
[375018455,1753504238239,-864.93460938,0.00017589,2]
[375018456,1753504238250,-2061.57370036,0.00017589,2]
[375018457,1753504238261,-644.33175654,0.00017589,2]
[375018458,1753504238272,-2261.22834448,0.00017589,2]
[375018473,1753504240218,-383.112,0.00017589,2]
[375018475,1753504240232,-18684.81958924,0.00017589,2]
[375018477,1753504240241,-656.88501711,0.00017599,2]
[375018480,1753504240260,-230.46237522,0.00017699,2]
[375018482,1753504240271,-202.50985159,0.00017963,2]
[375018485,1753504240280,-555.0,0.00018245,2]
[375018487,1753504240290,-492.89105462,0.0001874,2]
[375018489,1753504240300,-656.88501705,0.00018775,2]
[375018491,1753504240310,-2223.42018267,0.00018786,2]
[375018493,1753504240320,-329.62,0.00018839,2]
[375018495,1753504240330,-215.0738,0.00018846,2]
[375018497,1753504240340,-1601.36500808,0.00018846,2]
[375018499,1753504240350,-283.15048502,0.000189,2]
[375018501,1753504240359,-179.89206476,0.00019024,2]
[375018503,1753504240370,-168.0,0.00019038,2]
[375018505,1753504240379,-150.0,0.0001904,2]
[375018507,1753504240389,-423.48867885,0.00019078,2]
[375018509,1753504240399,-1234.73329691,0.00019078,2]
[375018511,1753504240408,-162.29,0.000191,2]
[375018513,1753504240418,-162.29,0.000191,2]
[375018515,1753504240427,-158.42,0.000191,3]
[375018517,1753504240437,-423.48867885,0.00019159,2]
[375018519,1753504240447,-2223.42018268,0.00019159,2]
[375018521,1753504240457,-151.0,0.00019166,2]
[375018523,1753504240466,-151.0,0.00019166,2]
[375018525,1753504240476,-151.0,0.00019166,2]
[375018528,1753504240488,-151.0,0.00019166,2]
[375018530,1753504240497,-151.0,0.00019166,2]
[375018547,1753504240656,-151.0,0.00019166,2]
[375018549,1753504240666,-151.0,0.00019166,2]
[375018551,1753504240675,-151.0,0.00019166,2]
[375018553,1753504240685,-151.0,0.00019166,2]
[375018555,1753504240694,-151.0,0.00019166,2]
[375018557,1753504240703,-151.0,0.00019166,2]
[375018559,1753504240713,-151.0,0.00019166,2]
[375018561,1753504240723,-151.0,0.00019166,2]
[375018563,1753504240732,-151.0,0.00019166,2]
[375018565,1753504240741,-151.0,0.00019166,2]
[375018567,1753504240750,-151.0,0.00019166,2]
[375018569,1753504240759,-211.10327746,0.00019166,2]
[375018571,1753504240768,-151.0,0.00019166,2]
[375018573,1753504240777,-151.0,0.00019166,2]
[375018575,1753504240786,-152.90526298,0.00019166,2]
[375018577,1753504240795,-151.0,0.00019166,2]
[375018579,1753504240804,-151.0,0.00019166,2]
[375018581,1753504240813,-151.0,0.00019166,2]
[375018583,1753504240823,-192.04003531,0.00019166,2]